Cogmind - Beta 15 @@@ ROGUE MODE // 2025.09.21 @ 16:40:14 Player: abstractfish Result: Destroyed by G-34 Mercenary with Small Laser Performance ------------- Evolutions (1) 500 Regions Visited (2) 400 Robots Destroyed (19) 95 Value Destroyed (409) 409 Prototype IDs (2) 40 Alien Tech Used (0) 0 Bonus (-10) -10 TOTAL SCORE: 1434 Bonus ------- Friendly Fire -10 Cogmind --------- Core Integrity 0/400 Matter 450/450 Energy 100/100 System Corruption 0% Temperature Cool (6) Movement Core (750) Ox14 Location -9/Materials Parts ------- > --- POWER (2) -------- (None) > --- PROPULSION (2) --- (None) > --- UTILITY (2) ------ High-capacity Storage Unit Large Matter Pod > --- WEAPON (3) ------- (None) > --- INVENTORY (20) --- Light Treads Aluminum Leg Heat Sink Small Storage Unit Peak State ------------ > --- POWER ------------ Ion Engine > --- PROPULSION ------- Armored Wheel Armored Wheel > --- UTILITY ---------- Improved Heat Sink High-capacity Storage Unit > --- WEAPON ----------- EM Pulse Gun Beam Cannon > --- INVENTORY -------- Ion Engine Light Treads Aluminum Leg Aluminum Leg Wheel Compact Wheel Heat Sink Small Storage Unit Large Matter Pod Medium Laser [Rating: 12] Favorites ----------- Power Ion Engine Engine Ion Engine Propulsion Armored Wheel Treads Light Treads Leg Aluminum Leg Wheel Armored Wheel Utility High-capacity Storage Unit Device Improved Heat Sink Storage High-capacity Storage Unit Weapon EM Pulse Gun Energy Gun EM Pulse Gun Energy Cannon Beam Cannon Ballistic Gun Assault Rifle Build | -11 -10 -9 ------- Run | Yrd Mat Mat Slots Evolved 2 | . . 2 Power 1 | . . 1 Propulsion . | . . . Utility . | . . . Weapon 1 | . . 1 Parts Attached 19 | 7 11 1 Power 3 | 1 1 1 Engine 3 | 1 1 1 Core . | . . . Reactor . | . . . Propulsion 7 | 4 3 . Treads 2 | 2 . . Leg 2 | 2 . . Wheel 3 | . 3 . Hover . | . . . Flight . | . . . Utility 5 | 1 4 . Device 2 | . 2 . Storage 3 | 1 2 . Processor . | . . . Hackware . | . . . Protection . | . . . Artifact . | . . . Weapon 4 | 1 3 . Energy Gun 2 | . 2 . Energy Cannon 1 | . 1 . Ballistic Gun 1 | 1 . . Ballistic Cannon . | . . . Launcher . | . . . Special Weapon . | . . . Impact Weapon . | . . . Slashing Weapon . | . . . Piercing Weapon . | . . . Special Melee Weapon . | . . . Unidentified Prototypes . | . . . Parts Lost 8 | . 1 7 Power 2 | . . 2 Propulsion 2 | . . 2 Utility 1 | . 1 . Weapon 3 | . . 3 Highest Loss Streak 4 | . 1 4 To Critical Strikes . | . . . Average Backups 6 | 6 7 3 Power . | 1 . . Propulsion 2 | 3 2 1 Utility 1 | . 2 2 Weapon 1 | 1 1 . Tool/Special . | . . . Unused Backups 2 | . 1 1 Power . | . . . Propulsion 2 | . 1 1 Utility . | . . . Weapon . | . . . Tool/Special . | . . . Average Slot Usage (%) 87 | . 94 68 Engine 13 | . 14 10 Treads 6 | . 8 . Leg 1 | . 2 . Wheel 17 | . 17 16 Device 6 | . 9 . Storage 17 | . 15 22 Energy Gun 15 | . 15 14 Energy Cannon 6 | . 7 4 Ballistic Gun 1 | . 2 . Peak Build Rating 12 | 5 12 11 Average Rating 7 | 4 9 7 On Entrance 4 | . 5 9 Naked Turns . | . . . Heaviest Build 60 | 12 52 60 Greatest Support 24 | 20 24 24 Greatest Overweight (x) 14 | 1 5 14 Average Overweight (x) 2 | . 2 1 Largest Inventory Capacity 20 | 8 20 20 Average Capacity 16 | 7 17 20 Most Carried 10 | 8 10 4 Average Carried 6 | 6 7 3 Final Capacity 20 | 8 20 20 Final Carried 7 | 7 5 4 Class Distribution -------------------- 91% | Mutant 8% | Gunner Dominant Class ---------------- Mutant | -10/Materials Mutant | -9/Materials Resources | -11 -10 -9 ----------- Run | Yrd Mat Mat Matter Collected 532 | 252 260 20 Remotely . | . . . Salvage Created 555 | . 339 216 Parts 43 | . 22 21 Haulers Intercepted . | . . . Recyclers Shooed 2 | . . 2 Parts Field Recycled . | . . . Retrieved Matter . | . . . Parts Self-Destructed . | . . . Prevented . | . . . Kills | -11 -10 -9 ------- Run | Yrd Mat Mat Combat Hostiles Destroyed 15 | . 9 6 Guns 12 | . 6 6 Cannons 2 | . 2 . AOE 1 | . 1 . Classes Destroyed 5 | . 3 2 Worker 2 | . 1 1 Operator 1 | . . 1 Watcher 1 | . . 1 Swarmer 7 | . 3 4 Grunt 8 | . 6 2 Best Kill Streak 5 | . 4 5 Combat Bots Only 4 | . 3 4 Max Kills in Single Turn 2 | . 2 2 Gunslinging . | . . . Exploded 1 | . 1 . Melee . | . . . Uniques/NPCs Destroyed . | . . . Combat | -11 -10 -9 -------- Run | Yrd Mat Mat Hostile Shots Fired 197 | . 52 145 Missed 69 | . 19 50 Hits 128 | . 33 95 Projectile 128 | . 33 95 Damage Taken 1333 | . 341 992 Core 443 | . 37 406 Absorbed by Shields . | . . . Core Remaining (%) 92 | 100 85 . Volleys Fired 74 | . 41 33 Largest 3 | . 2 3 Hottest 150 | . 100 150 Shots Fired 114 | . 65 49 Gun 94 | . 53 41 Cannon 20 | . 12 8 Launcher . | . . . Special . | . . . Kinetic 17 | . 17 . Thermal 65 | . 24 41 Explosive . | . . . Electromagnetic 32 | . 24 8 Robot Hit Streak 5 | . 5 3 Robot Miss Streak 7 | . 6 7 Penetration Max . | . . . Secondary Targets 2 | . 2 . Max Gunslinging Chain 1 | . 1 . Shots Hit Robots 49 | . 29 20 Core Hits 27 | . 15 12 Critical Kills . | . . . Critical Parts Destroyed . | . . . Critical Strikes 2 | . 1 1 Burn 2 | . 1 1 Melee Attacks . | . . . Impact . | . . . Slashing . | . . . Piercing . | . . . Sneak Attacks . | . . . Combat Hostiles . | . . . Follow-up Attacks . | . . . Damage Inflicted 804 | . 514 290 Guns 647 | . 361 286 Cannons 70 | . 70 . Explosions 83 | . 83 . Melee . | . . . Ramming 4 | . . 4 Kinetic 153 | . 153 . Thermal 480 | . 228 252 Explosive . | . . . Electromagnetic 167 | . 133 34 Impact . | . . . Slashing . | . . . Piercing . | . . . Highest Corruption . | . . . Average Corruption . | . . . Corruption Purged . | . . . Corruption Blocked . | . . . Overload Shots . | . . . Overflow Damage . | . . . Projectiles . | . . . Explosions . | . . . Melee . | . . . Knockbacks . | . . . Impact . | . . . Kinetic . | . . . Secondary . | . . . Self-Inflicted Damage 2 | . . 2 Shots . | . . . Rammed 1 | . . 1 Targets Rammed 1 | . . 1 Kicked . | . . . Crushed . | . . . Highest Temperature 511 | . 132 511 Average Temperature 158 | . 38 212 Received Heat Transfer 603 | . 141 462 Effects 8 | . . 8 Shutdowns 5 | . . 5 Interference 2 | . . 2 Damage (minor) 1 | . . 1 Siege Activations . | . . . Martial Activations . | . . . Shielding Activations . | . . . Robots Disrupted . | . . . Combat Hostiles . | . . . Robots Corrupted . | . . . Combat Hostiles . | . . . Parts Fried . | . . . Impact Corruptions . | . . . Robots Melted . | . . . Combat Hostiles . | . . . Parts Melted . | . . . Heat Transferred 1358 | . 544 814 Parts Sabotaged . | . . . Parts Stolen . | . . . Parts Stripped . | . . . Power Chain Reactions 1 | . 1 . Alert | -11 -10 -9 ------- Run | Yrd Mat Mat Maximum Alert Level . | . . . Low Security (%) 100 | 100 100 100 Level 1 . | . . . Level 2 . | . . . Level 3 . | . . . Level 4 . | . . . Level 5 . | . . . High Security . | . . . Max Security . | . . . Peak Influence 112 | . 85 112 Initial 30 | . . 30 Average 23 | . 17 57 Influence Increases 413 | . 241 172 Destroy 0b10 Robot/C 300 | . 180 120 Destroy 0b10 Robot/NC 20 | . 5 15 Destroy Leader 62 | . 40 22 Disable Machine 30 | . 15 15 Destroy Structure 1 | . 1 . Influence Decreases 413 | . 168 245 Entered New Map 43 | . . 43 Time Decay 298 | . 158 140 Lost Part 72 | . 10 62 Squads Dispatched 6 | . 5 1 Investigation 3 | . 3 . Extermination . | . . . Reinforcement 3 | . 2 1 Assault . | . . . Garrison . | . . . Intercept . | . . . Searches Triggered . | . . . Construction Impeded . | . . . Haulers Reinforced . | . . . Active Scanning Responses . | . . . Cargo Convoy Interrupts . | . . . Stealth | -11 -10 -9 --------- Run | Yrd Mat Mat Distress Signals 1 | . . 1 Communications Jammed . | . . . Distress Signals . | . . . Times Spotted 23 | . 11 12 Peak Tracking Total 4 | . 3 4 Tactical Retreats . | . . . Traps | -11 -10 -9 ------- Run | Yrd Mat Mat Traps Triggered 1 | . 1 . Indirectly . | . . . Trap Hack Attempts . | . . . Triggered . | . . . Disarmed . | . . . Reprogrammed . | . . . Reused . | . . . Traps Extracted . | . . . Installed . | . . . Triggered . | . . . Machines | -11 -10 -9 ---------- Run | Yrd Mat Mat Machines Disabled 2 | . 1 1 Max in Single Turn 1 | . 1 1 Machines Repaired . | . . . Machines Dismantled . | . . . Machines Sabotaged . | . . . Overloaded Fab Kills . | . . . Hacking | -11 -10 -9 --------- Run | Yrd Mat Mat Machines Accessed 6 | . 5 1 Terminals 5 | . 4 1 Fabricators . | . . . Repair Stations . | . . . Recycling Units 1 | . 1 . Scanalyzers . | . . . Garrison Access . | . . . Total Hacks 22 | . 19 3 Successful 15 | . 12 3 Failed 7 | . 7 . Catastrophic 1 | . 1 . Database Lockouts . | . . . Manual . | . . . Terminals 18 | . 15 3 Fabricators . | . . . Repair Stations . | . . . Recycling Units 4 | . 4 . Scanalyzers . | . . . Garrison Access . | . . . Terminal Hacks 11 | . 8 3 Record 6 | . 4 2 Prototype ID Bank 1 | . 1 . Alert Level 2 | . 2 . Dispatch Records 1 | . . 1 Surveillance Status 1 | . 1 . Fabricator Hacks . | . . . Repair Station Hacks . | . . . Recycling Unit Hacks 4 | . 4 . Recycle Component 1 | . 1 . Process 1 | . 1 . Report Inventory 1 | . 1 . Retrieve Matter 1 | . 1 . Scanalyzer . | . . . Garrison Access Hacks . | . . . Unauthorized Hacks . | . . . Terminals . | . . . Fabricators . | . . . Repair Stations . | . . . Recycling Units . | . . . Scanalyzers . | . . . Garrison Access . | . . . Data Cores Recovered . | . . . Used . | . . . Hacking Detections 5 | . 4 1 Full Trace Events 3 | . 3 . Feedback Events . | . . . Feedback Blocked . | . . . Robot Schematics Acquired . | . . . Robots Built . | . . . Authchips . | . . . Time . | . . . Total Robot Build Rating . | . . . Part Schematics Acquired . | . . . Parts Built . | . . . Authchips . | . . . Time . | . . . Total Part Build Rating . | . . . Parts Repaired . | . . . Time . | . . . Parts Recycled 1 | . 1 . Recycled Matter 138 | . 138 . Retrieved Matter 336 | . 336 . Retrieved Components . | . . . Parts Scanalyzed . | . . . Part Schematics Acquired . | . . . Parts Damaged . | . . . Bothacking | -11 -10 -9 ------------ Run | Yrd Mat Mat Used RIF Installer . | . . . Robots Hacked . | . . . Non-combat . | . . . Combat . | . . . Robot Hacks Applied . | . . . Relay Couplers Released . | . . . Fabnet Peak Effective % . | . . . Robots Rewired . | . . . Allies Hacked . | . . . Hacks Repelled . | . . . Allies | -11 -10 -9 -------- Run | Yrd Mat Mat Total Allies . | . . . Largest Group . | . . . Highest-Rated Group . | . . . Highest-Rated Ally . | . . . Total Orders . | . . . Ally Attacks . | . . . Total Damage . | . . . Kills . | . . . Allies Corrupted . | . . . Allies Melted . | . . . Intel | -11 -10 -9 ------- Run | Yrd Mat Mat Active Infowar (turns) . | . . . Robot Analysis Total . | . . . Derelict Logs Recovered . | . . . Drone Launches . | . . . Drone Recoveries . | . . . Exploration | -11 -10 -9 ------------- Run | Yrd Mat Mat Turns Passed 1341 | 192 855 294 Spaces Moved 751 | 112 539 100 Core 38 | 36 . 2 Treads 134 | 72 62 . Legs 4 | 4 . . Wheels 575 | . 477 98 Hover . | . . . Flight . | . . . Fastest Speed 50 | 50 95 105 Average Speed 131 | 128 132 127 Slowest Speed 750 | 160 160 750 Overloaded Moves . | . . . Propulsion Burnouts . | . . . Robots Hopped . | . . . Potential Cave-ins . | . . . Cave-ins Triggered . | . . . Exploration Rate (%) 30 | 7 73 10 Regions Visited 2 Branch Regions . Pre-discovered Areas . | . . . Known Exits Taken . | . . . Unknown Exits Taken 2 | 1 1 . Scrap Searched . | . . . Spaces Dug . | . . . Terrain Destroyed 1 | . 1 . Melee . | . . . Projectile . | . . . AOE 1 | . 1 . Terrain Rammed . | . . . Walls Destroyed . | . . . Machines Disabled . | . . . Actions | -11 -10 -9 --------- Run | Yrd Mat Mat Total 998 | 158 610 230 Wait 128 | 32 3 93 Move 749 | 111 538 100 Hop . | . . . Pick Up 17 | 8 8 1 Fast Attach 4 | 4 . . Attach 6 | 1 3 2 Detach . | . . . Swap 13 | 2 11 . Drop 6 | . 6 . Fire 74 | . 41 33 Melee . | . . . Ram 1 | . . 1 Kick . | . . . Crush . | . . . Escape Stasis . | . . . Rewire . | . . . Trap . | . . . Miscellaneous . | . . . Route ------- -11/Scrapyard -10/Materials (discovered 3 exits: *Mat x2 / [*Min]) -9/Materials History --------- Turn | Location | Event 31 | -11/Scrapyard | Discovered new exit (range 14) 193 | -11/Scrapyard | Entered Materials 194 | -10/Materials | Met a group of wandering Federalists 308 | -10/Materials | Build established: Mutant 518 | -10/Materials | Discovered new exit (range 15) 671 | -10/Materials | Discovered new exit (range 7) 981 | -10/Materials | Discovered new exit (range 16) 1048 | -10/Materials | Entered another Materials area 1048 | -9/Materials | Evolved 2 slots: Power x1, Weapon x1 1213 | -9/Materials | Lost 4 parts (2p2w) 1254 | -9/Materials | Core integrity fell below 50% 1319 | -9/Materials | Core integrity fell below 20% 1342 | -9/Materials | Destroyed by G-34 Mercenary with Small Laser Last Messages --------------- Channel. 01283_ K-01 Serf collects debris. 01286_ Arm. Wheel destroyed. 01286_ K-01 Serf collects debris. 01286_ U-05 Engineer works on Purification Channel. 01290_ K-01 Serf collects debris. 01291_ U-05 Engineer works on Purification Channel. 01293_ K-01 Serf collects debris. 01296_ K-01 Serf destroyed. 01297_ U-05 Engineer works on Purification Channel. 01302_ R-06 Scavenger collects Lgt. Ion Engine. 01302_ U-05 Engineer works on Purification Channel. 01305_ R-06 Scavenger collects Wheel. 01308_ U-05 Engineer works on Purification Channel. 01330_ Med. Laser destroyed. Map ----- +----------------------------------------------------+ | ?????????????????????????????????????????????????? | | ?????????????????????????????????????????????????? | | ?????????????????????????????????????????????????? | | ?????????????????????????????????????????????????? | | ????????????????########?????????????????????????? | | ????????????????# #?????????????????????????? | | ????????????????# T #########?????????????????? | | ????????????????# ## #?????????????????? | | ????????????????# ## "" #?????????????????? | | ????????????????# ## "T #?????????????????? | | ????????????????# ## "" #?????????????????? | | ????????????????####+#### #?????????????????? | | ????????????????# # #?????????????????? | | ????????????????# + #?????????????????? | | ????????????????# # """ #?????????????????? | | ???????????########## # """ #?????????????????? | | ???????????# # # """ #?????????????????? | | ???????????# ! T # # """ #?????????????????? | | ???????????# +% # """ #????+####????????? | | ???????????# """ = # # #??? ?????????? | | ???????????# """"" [# ########### #??????????? | | ???????????# """" # #??????????? | | ???????????# """ # % #??????????? | | ???????????# """ # #??????????? | | ???????????# ! # <<<[<" #??????????? | | ???????????########## % @<<<